bitfinex/quotes_ETHUSD_20260129
["timestamp","ask_amount","ask_price","bid_price","bid_amount"]
[1769667400510,0.97523308,2956.6,2955.8,0.52066352]
[1769667400809,0.97523308,2956.6,2955.8,0.002]
[1769667402201,0.97523308,2956.4,2955.8,0.002]
[1769667405512,0.97523308,2956.2,2955.8,0.002]
[1769667406009,0.97523308,2956.2,2956.0,0.002]
[1769667407492,0.97523308,2956.4,2956.0,0.002]
[1769667409233,0.97623308,2956.6,2956.0,0.002]
[1769667409726,1.82082753,2956.5,2956.0,0.002]
[1769667409930,2.41204806,2956.5,2956.0,0.002]
[1769667412921,0.97523308,2956.4,2956.0,0.002]
[1769667414513,0.97523308,2956.2,2955.8,0.002]
[1769667415519,0.84565165,2956.3,2955.8,0.002]
[1769667419149,0.84565165,2956.3,2956.0,0.002]
[1769667419459,1.42818664,2956.3,2956.0,0.002]
[1769667420155,0.58253499,2956.3,2956.0,0.002]
[1769667420362,0.001,2956.3,2956.0,0.002]
[1769667423143,0.84555293,2956.7,2956.0,0.94056473]
[1769667423660,0.84555293,2956.7,2956.0,0.002]
[1769667425438,0.99597905,2956.6,2956.0,0.002]
[1769667427755,0.84559445,2956.5,2956.0,0.002]
[1769667429567,1.84156648,2956.6,2956.0,0.002]
[1769667430568,0.99597905,2956.6,2956.0,0.002]
[1769667430769,0.84555865,2956.7,2956.0,0.002]
[1769667431371,0.84555865,2956.7,2956.2,0.002]
[1769667431573,0.001,2956.4,2956.2,0.002]
[1769667441797,0.001,2956.4,2955.8,0.002]
[1769667441798,0.99697905,2956.4,2955.8,0.002]
[1769667441957,0.99697905,2956.4,2955.6,0.002]
[1769667443911,0.99597905,2956.2,2955.6,0.002]
[1769667444394,0.84565165,2956.3,2955.6,0.002]
[1769667444604,1.36817538,2956.3,2956.0,0.002]
[1769667446310,2.31119387,2956.3,2956.0,0.002]
[1769667449307,1.36817538,2956.3,2956.0,0.002]
[1769667451735,2.29310633,2956.3,2956.0,0.002]
[1769667452026,0.5676713,2956.2,2956.0,0.002]
[1769667452222,1.49260225,2956.2,2955.6,0.002]
[1769667452733,0.92493095,2956.2,2955.6,0.002]
[1769667452934,1.36817538,2956.3,2955.6,0.002]
[1769667454548,2.29310633,2956.3,2955.6,0.002]
[1769667455125,0.92493095,2956.2,2955.6,0.002]
[1769667456049,0.92493095,2956.2,2955.8,0.002]
[1769667456248,1.56340225,2956.2,2955.8,0.002]
[1769667456844,1.56440225,2956.2,2955.8,0.002]
[1769667457237,0.84570887,2956.1,2955.8,0.002]
[1769667460250,3.38372315,2956.2,2955.8,0.002]
[1769667463982,0.92493095,2956.1,2955.8,0.002]
[1769667464164,0.43086541,2956.0,2955.8,0.002]
[1769667466364,0.84576609,2955.9,2955.8,0.002]
[1769667466929,0.43086541,2956.0,2955.8,0.002]
[1769667467234,1.2766058,2956.0,2955.8,0.002]
[1769667467747,0.43086541,2956.0,2955.8,0.002]
[1769667467944,1.27660371,2956.0,2955.8,0.002]
[1769667469378,1.27760371,2956.0,2955.8,0.002]
[1769667470575,0.001,2956.0,2955.8,0.002]
[1769667470876,0.84673948,2956.0,2955.8,0.002]
[1769667471078,0.001,2956.0,2955.8,0.002]
[1769667472479,0.92593095,2956.0,2955.8,0.002]
[1769667473878,1.77069704,2955.9,2955.8,0.002]
[1769667474051,1.3612316,2955.9,2955.6,0.002]
[1769667474248,0.84576609,2955.9,2955.6,0.002]
[1769667474675,1.77069704,2955.9,2955.6,0.002]
[1769667475149,1.77069704,2955.9,2955.5,0.002]
[1769667476074,1.77069704,2955.9,2955.4,0.002]
[1769667477275,1.75353508,2955.9,2955.4,0.002]
[1769667477480,2.67639054,2955.9,2955.4,0.002]
[1769667480650,0.90776899,2955.8,2955.4,0.002]
[1769667481050,0.90776899,2955.8,2954.7,0.90982038]
[1769667482148,0.90776899,2955.7,2954.6,0.002]
[1769667482547,0.90776899,2955.5,2954.6,0.002]
[1769667482778,0.90776899,2955.3,2954.6,0.002]
[1769667482981,1.61576899,2955.3,2954.6,0.002]
[1769667483497,0.90776899,2955.2,2954.6,0.002]
[1769667485621,0.84599505,2955.1,2954.6,0.002]
[1769667487315,1.75376404,2955.1,2954.4,0.002]
[1769667487623,0.84605231,2954.9,2954.4,0.002]
[1769667489790,1.7538213,2954.9,2954.4,0.002]
[1769667492301,0.90776899,2954.8,2954.4,0.002]
[1769667492812,0.90776899,2954.8,2954.6,0.002]
[1769667494226,0.90776899,2954.8,2953.8,0.90982038]
[1769667494419,1.75387857,2954.7,2953.8,0.90982038]
[1769667495727,1.75387857,2954.7,2952.9,7.18639331]
[1769667495728,0.90776899,2954.6,2953.6,1.75622375]
[1769667495939,0.90776899,2954.6,2953.7,0.90982038]
[1769667496238,1.61676899,2954.5,2953.6,0.8464187]
[1769667496415,0.8461955,2954.4,2953.7,0.17582391]
[1769667496622,0.8461955,2954.4,2953.7,1.08564429]
[1769667500532,0.8461955,2954.4,2953.7,1.93203463]
[1769667501439,2.46295558,2954.5,2953.7,1.93203463]
[1769667501608,1.55518659,2954.5,2953.8,1.10302384]
[1769667501809,0.84618659,2954.5,2953.8,1.10302384]
[1769667502512,3.38456387,2954.6,2953.8,1.10302384]
[1769667503843,4.29233286,2954.6,2953.8,1.10302384]
[1769667504045,0.90776899,2954.5,2953.5,1.75824627]
[1769667504232,0.90776899,2954.5,2953.6,0.84641123]
[1769667504611,0.90776899,2954.5,2953.5,0.002]
[1769667504612,0.8461955,2954.4,2953.5,0.002]
[1769667504825,0.90776899,2954.3,2954.0,0.002]
[1769667505010,1.42163719,2954.3,2954.0,0.002]
[1769667505209,0.90876899,2954.3,2954.0,0.002]
[1769667507747,0.001,2954.3,2954.0,0.002]
[1769667520883,0.90238417,2954.3,2954.0,0.002]
[1769667522185,0.84625279,2954.2,2954.0,0.002]
[1769667522357,1.74862772,2954.3,2954.0,0.002]
[1769667522556,0.58425137,2954.2,2954.0,0.002]
[1769667524992,2.33189883,2954.2,2954.0,0.002]
[1769667527403,2.33189883,2954.2,2953.5,0.002]
[1769667529224,2.33189883,2954.2,2954.0,0.002]
[1769667530012,0.58425137,2954.2,2954.0,0.002]
[1769667530323,0.84723169,2954.3,2954.0,0.002]
[1769667531780,0.001,2954.3,2954.0,0.002]
[1769667533395,6.331,2954.9,2954.1,0.94534228]
[1769667533608,0.001,2954.9,2954.1,0.94534228]
[1769667533815,0.001,2954.9,2954.3,0.94534228]
[1769667534012,0.001,2954.9,2954.3,1.12450179]
[1769667534221,0.90238417,2954.9,2954.3,0.17915951]
[1769667534406,0.90238417,2954.9,2954.0,0.002]
[1769667534797,0.001,2954.9,2954.2,0.94534228]
[1769667535294,0.001,2954.9,2954.1,0.84627691]
[1769667535497,0.71,2954.9,2954.1,1.81813967]
[1769667535694,0.71,2954.9,2954.2,0.52052751]
[1769667536023,0.84608095,2954.8,2954.2,0.52052751]
[1769667536211,0.84608095,2954.8,2954.1,1.81813967]
[1769667536520,0.84608095,2954.8,2954.1,0.97186276]
[1769667536696,0.84608095,2954.8,2954.1,1.81814116]
[1769667538526,0.84608095,2954.8,2954.1,0.97186276]
[1769667539710,0.99178478,2954.7,2954.0,0.002]
[1769667539911,1.58499269,2954.7,2954.0,0.002]
[1769667540206,1.58499269,2954.7,2954.0,0.84830551]
[1769667540405,1.58499269,2954.7,2954.0,0.002]
[1769667541332,0.84713822,2954.6,2954.0,0.002]
[1769667541834,0.001,2954.6,2954.0,0.002]
[1769667542800,0.99178478,2954.5,2954.0,0.002]
[1769667543431,0.99178478,2954.3,2954.0,0.002]
[1769667545029,0.99178478,2954.3,2953.5,0.84845015]
[1769667545215,0.709,2954.3,2953.6,0.97186276]
[1769667545539,1.20299694,2954.3,2953.7,0.97186276]
[1769667545767,0.709,2954.3,2953.7,0.97186276]
[1769667546739,0.001,2954.6,2953.7,0.97186276]
[1769667547847,0.001,2954.6,2953.9,0.97186276]
[1769667553451,0.001,2954.6,2953.9,1.82019154]
[1769667553753,0.001,2954.4,2953.9,2.34076696]
[1769667556526,0.001,2954.4,2954.0,0.97186276]
[1769667556727,0.001,2954.6,2954.0,0.97186276]
[1769667559980,0.001,2954.6,2954.1,0.84628143]
[1769667561276,0.001,2954.6,2954.0,1.81815677]
[1769667561480,0.001,2954.6,2954.1,0.57260301]
[1769667562767,0.001,2954.6,2954.1,1.54446577]
[1769667565180,0.001,2954.6,2954.1,0.57260301]
[1769667565574,0.001,2954.6,2954.3,0.002]
[1769667565951,0.001,2954.4,2954.3,0.002]
[1769667573463,0.9431702,2954.4,2953.5,0.002]
[1769667573663,0.9431702,2954.4,2952.7,0.002]
[1769667573664,0.9421702,2954.0,2952.8,0.84863345]
[1769667573975,0.91439329,2953.9,2953.1,0.74538163]
[1769667574290,0.9421702,2954.0,2953.1,0.74538163]
[1769667575658,0.84633873,2953.9,2953.1,0.74538163]
[1769667575858,0.84633873,2953.9,2953.1,1.59194009]
[1769667576582,0.84633873,2953.9,2953.1,1.59194884]
[1769667576810,1.78848458,2954.0,2953.1,1.59194884]
[1769667578199,1.78848458,2954.0,2953.3,0.711]
[1769667578514,1.78848458,2954.0,2953.3,0.94149488]
[1769667579411,0.8463045,2954.1,2953.5,0.002]
[1769667579613,0.001,2953.7,2953.5,0.002]
[1769667585826,0.001,2954.4,2953.6,0.74538163]
[1769667586124,0.001,2954.4,2953.7,1.64049757]
[1769667586321,0.001,2954.4,2953.8,0.74538163]
[1769667586502,0.001,2954.6,2953.9,0.74538163]
[1769667587525,0.9421702,2954.5,2953.8,8.20377772]
[1769667587694,0.9421702,2954.5,2954.0,0.709]
[1769667589508,0.9421702,2954.5,2953.9,0.84632919]
[1769667589712,0.9421702,2954.5,2954.0,0.709]
[1769667589713,0.9421702,2954.4,2954.0,0.709]
[1769667591222,0.001,2954.3,2954.0,0.709]
[1769667592624,0.001,2954.3,2953.5,0.84845336]
[1769667592828,0.001,2954.3,2954.1,0.709]
[1769667595305,0.001,2954.3,2953.9,0.84631693]
[1769667595500,0.001,2954.3,2954.0,0.709]
[1769667595935,0.001,2954.3,2954.0,1.55530786]
[1769667597632,0.001,2954.3,2954.0,0.709]
[1769667600036,0.001,2954.3,2953.7,3.38554504]
[1769667600220,0.001,2954.3,2954.1,0.709]
[1769667602964,0.001,2954.3,2954.2,0.002]
[1769667606460,0.99004545,2954.3,2954.0,0.002]
[1769667606629,0.99004545,2954.3,2954.0,0.709]
[1769667606819,0.99004545,2954.3,2953.7,0.709]
[1769667607152,1.836286,2954.3,2953.7,0.709]
[1769667607319,0.1836286,2954.2,2953.7,0.709]
[1769667612856,0.1836286,2954.2,2952.6,0.002]
[1769667612857,0.98904545,2953.8,2952.6,0.002]
[1769667613055,0.98904545,2953.3,2952.6,0.002]
[1769667614734,0.98904545,2953.1,2952.6,0.002]
[1769667615151,0.98904545,2953.1,2952.5,1e-08]
[1769667617656,0.84659668,2953.0,2952.5,1e-08]
[1769667619263,2.35784502,2953.0,2952.5,1e-08]
[1769667621660,1.36879957,2953.0,2952.5,1e-08]
[1769667621827,0.84659668,2953.0,2952.5,1e-08]
[1769667623566,4.37543217,2953.1,2952.5,1e-08]
[1769667627141,0.001,2952.9,2952.5,1e-08]
[1769667628049,0.97325874,2952.9,2952.5,1e-08]
[1769667630655,0.84665402,2952.8,2952.5,1e-08]
[1769667633195,0.001,2952.9,2952.5,1e-08]
[1769667637190,0.99539983,2952.7,2952.1,0.002]
[1769667637563,0.99539983,2952.6,2952.1,0.002]
[1769667637783,0.99539983,2952.4,2951.5,0.93620324]
[1769667639287,0.99539983,2952.4,2951.4,0.002]
[1769667639577,0.99539983,2952.3,2951.4,0.002]
[1769667639881,0.84685478,2952.1,2951.4,0.002]
[1769667640349,0.99539983,2952.0,2951.4,0.002]
[1769667641054,0.99539983,2952.0,2951.1,0.002]
[1769667643863,0.99539983,2951.8,2951.1,0.002]
[1769667644063,0.99539983,2951.8,2951.0,0.002]
[1769667644064,0.99539983,2951.6,2951.0,1e-08]
[1769667645145,0.84691215,2951.9,2951.0,0.93620325]
[1769667646075,3.38764863,2952.0,2951.0,0.93620325]
[1769667646784,3.38764863,2952.0,2951.1,0.93620324]
[1769667646949,3.38744706,2952.1,2951.1,0.93620324]
[1769667647153,3.38744706,2952.1,2951.3,0.93620324]
[1769667648955,0.84679741,2952.3,2951.3,0.93620324]
[1769667650453,0.84679741,2952.3,2951.5,0.002]
[1769667650654,0.84679741,2952.3,2951.5,0.93820324]
[1769667650865,3.38711106,2952.4,2951.5,0.93820324]
[1769667651066,5.24415495,2952.4,2951.5,0.93820324]
[1769667652288,0.86164406,2952.4,2951.5,0.93820324]
[1769667653297,0.84679741,2952.3,2951.5,0.93820324]
[1769667658975,0.84679741,2952.3,2951.6,0.9920416]
[1769667661010,1.82586759,2952.6,2951.6,0.9920416]
[1769667661305,0.52136685,2952.5,2951.6,0.9920416]
[1769667663041,1.82592495,2952.4,2951.5,0.002]
[1769667663183,1.82592495,2952.4,2951.5,0.9940416]
[1769667663506,0.001,2952.2,2951.5,0.002]
[1769667663815,0.98015622,2952.2,2951.5,0.002]
[1769667664916,0.84685478,2952.1,2951.5,0.002]
[1769667665121,1.36382805,2952.1,2951.5,0.002]
[1769667674811,0.001,2951.9,2951.5,0.002]
[1769667681838,0.001,2951.9,2951.5,0.9940416]
[1769667684925,0.001,2952.2,2951.6,0.9920416]
[1769667686354,0.001,2951.7,2951.6,0.9920416]
[1769667686555,0.001,2951.7,2951.6,1.17615042]
[1769667688642,0.001,2951.7,2951.6,0.9920416]
[1769667689234,0.001,2951.7,2951.5,0.002]
[1769667690853,0.001,2951.7,2951.5,0.917284]
[1769667691667,0.001,2951.7,2951.5,0.002]
[1769667696262,0.90548943,2951.7,2951.3,0.002]
[1769667697550,0.001,2951.7,2951.3,0.002]
[1769667710150,0.001,2951.7,2951.5,0.002]
[1769667710350,0.001,2951.7,2951.3,0.002]
[1769667710554,0.001,2951.5,2951.3,0.002]
[1769667719553,1.42210375,2951.5,2951.3,0.002]
[1769667721053,1.42210375,2951.5,2951.0,1e-08]
[1769667722082,0.84705563,2951.4,2951.3,0.002]
[1769667722279,0.84705563,2951.4,2951.0,1e-08]
[1769667722884,1.42210375,2951.5,2951.0,1e-08]
[1769667722885,2.26914816,2951.5,2951.0,1e-08]
[1769667723254,1.36241668,2951.5,2951.0,1e-08]
[1769667725361,0.90673148,2951.3,2951.0,1e-08]
[1769667725561,0.5657248,2951.4,2951.0,1e-08]
[1769667726996,0.84708433,2951.3,2951.0,1e-08]
[1769667727375,0.84707564,2951.4,2951.0,1e-08]
[1769667728808,0.001,2951.5,2951.0,1e-08]
[1769667734020,0.001,2951.5,2951.2,0.002]
[1769667734192,0.001,2951.3,2951.2,0.002]
[1769667742329,0.001,2951.5,2951.2,0.002]
[1769667751237,0.001,2951.7,2951.2,0.99978626]
[1769667751444,0.001,2951.7,2951.3,1.18247792]
[1769667756311,0.001,2951.7,2951.3,0.18469166]
[1769667756637,0.001,2951.7,2951.2,0.002]
[1769667757213,0.001,2951.5,2951.2,0.002]
[1769667759024,0.001,2951.5,2951.2,0.99978626]
[1769667764049,0.001,2951.5,2951.2,0.002]
[1769667769261,0.001,2951.5,2951.4,0.002]
[1769667789300,0.9410008,2951.5,2951.4,0.002]
[1769667789452,1.45868918,2951.5,2951.4,0.002]
[1769667791355,1.36571531,2951.5,2951.4,0.002]
[1769667793658,0.001,2951.5,2951.4,0.002]
[1769667793888,0.001,2951.7,2951.4,0.96199634]
[1769667794049,0.84687079,2952.1,2951.4,0.96199634]
[1769667796457,0.001,2952.2,2951.6,0.95999634]
[1769667798215,0.84671165,2952.6,2951.7,0.95999634]
[1769667798991,0.001,2952.7,2951.9,0.95999634]
[1769667799197,0.001,2952.7,2951.9,1.47947531]
[1769667799588,0.001,2952.7,2951.9,0.95999634]
[1769667799899,0.9410008,2952.7,2951.6,0.84698399]
[1769667800311,0.9410008,2952.7,2951.5,1.80700516]
[1769667801176,0.9400008,2952.5,2951.5,1.80700516]
[1769667801778,0.9400008,2952.5,2951.4,0.002]
[1769667801984,0.9400008,2952.3,2951.4,0.002]
[1769667802875,0.9400008,2952.2,2951.4,0.002]
[1769667803210,0.9400008,2952.0,2951.4,0.002]
[1769667804614,0.9400008,2952.0,2951.6,0.002]
[1769667806917,0.84691215,2951.9,2951.6,0.002]
[1769667807416,0.84685478,2952.1,2951.6,0.002]
[1769667807596,1.18559635,2952.1,2951.6,0.002]
[1769667808412,0.84685478,2952.1,2951.6,0.002]
[1769667809004,3.38741566,2952.2,2951.6,0.002]
[1769667809314,0.84676873,2952.4,2951.6,0.92762852]
[1769667810622,1.82652626,2952.4,2951.6,0.92762852]
[1769667811234,11.60445263,2952.9,2951.6,0.92762852]
[1769667811235,0.001,2952.7,2952.2,0.97451653]
[1769667811551,1.82628892,2953.3,2952.5,0.97451653]
[1769667811693,0.97975753,2953.2,2952.3,1.8936289]
[1769667812022,0.97975753,2953.2,2951.9,0.97451653]
[1769667813422,0.97975753,2953.2,2952.1,0.97451653]
[1769667813423,1.82632554,2953.1,2952.1,0.97451653]
[1769667813894,0.97975753,2953.0,2952.1,0.97451653]
[1769667814095,0.97975753,2953.0,2952.0,0.84688346]
[1769667814296,0.97975753,2952.9,2952.0,2.34231309]
[1769667815928,1.82640323,2952.9,2952.0,2.34231309]
[1769667816825,0.97975753,2952.8,2952.0,1.36779318]
[1769667817126,0.97975753,2952.8,2951.9,0.84690339]
[1769667817532,0.8466457,2952.9,2952.0,1.82139692]
[1769667817730,0.8466457,2952.9,2952.1,0.97451653]
[1769667818240,0.98075753,2953.0,2952.1,0.97451653]
[1769667820225,0.84662535,2952.9,2952.1,0.97451653]
[1769667820432,2.34777131,2952.9,2952.1,0.97451653]
[1769667821016,1.36801378,2952.9,2952.1,0.97451653]
[1769667824018,0.84662535,2952.9,2952.2,0.97451653]
[1769667824339,0.84761308,2953.0,2952.2,0.97451653]
[1769667824637,0.84761308,2953.0,2952.1,0.84684542]
[1769667824941,0.98075753,2953.0,2952.0,0.97451653]
[1769667825130,0.98075753,2953.0,2952.1,1.1566594]
[1769667825433,0.98075753,2953.0,2952.1,0.97451653]
[1769667827923,0.84662535,2952.9,2952.1,1.82136961]
[1769667829739,0.84662535,2952.9,2952.1,0.84685308]
[1769667829909,0.84662535,2952.9,2952.2,0.97451653]
[1769667830113,0.84662535,2952.9,2952.2,1.15685349]
[1769667839520,0.001,2953.0,2952.2,1.15685349]
[1769667840155,1.65422556,2953.5,2952.4,0.92067505]
[1769667840543,0.9067722,2953.4,2952.4,0.92067505]
[1769667840949,2.0437761,2953.4,2952.4,1.09742487]
[1769667841259,0.9067722,2953.3,2952.4,1.09742487]
[1769667842155,0.9067722,2953.1,2952.4,0.17874982]
[1769667842464,0.9067722,2953.1,2952.4,0.002]
[1769667844331,0.84659668,2953.0,2952.4,0.002]
[1769667845768,0.8465863,2953.1,2952.4,0.92067505]
[1769667846468,0.84653934,2953.2,2952.4,1.76742916]
[1769667846854,0.84652877,2953.3,2952.5,0.91867505]
[1769667847063,0.84645336,2953.5,2952.5,1.09541797]
[1769667847237,0.84644437,2953.6,2952.5,1.09541797]
[1769667849268,4.29239296,2953.7,2952.7,0.91867505]
[1769667849468,0.5138789,2953.6,2952.8,0.91867505]
[1769667851974,0.84645336,2953.5,2952.8,1.76531951]
[1769667855978,4.29248272,2953.6,2952.8,0.91867505]
[1769667857257,0.9067722,2953.5,2952.7,0.53489884]
[1769667857457,0.9067722,2953.5,2952.7,0.002]
[1769667859046,1.75325422,2953.4,2952.7,0.002]
[1769667862956,0.9067722,2953.6,2952.7,0.002]
[1769667863294,0.9067722,2953.6,2952.7,0.92067505]
[1769667865162,0.84645336,2953.5,2952.7,1.76735091]
[1769667865362,0.84645336,2953.5,2952.8,0.17673509]
[1769667866880,1.77229237,2953.5,2952.8,0.17673509]
[1769667867062,1.77229237,2953.5,2952.7,0.92067505]
[1769667868086,1.77229237,2953.5,2952.7,1.76735611]
[1769667872394,1.77229237,2953.5,2952.7,1.76735611]
[1769667875488,1.77229237,2953.5,2952.9,0.002]
[1769667882467,0.97574809,2953.4,2952.6,0.002]
[1769667882669,0.97574809,2953.2,2952.6,0.002]
[1769667883788,0.84656801,2953.1,2952.6,0.002]
[1769667885609,1.8223161,2953.1,2952.6,0.002]
[1769667888507,1.8223161,2953.1,2952.8,0.002]
[1769667897318,0.84656801,2953.1,2952.8,0.002]
[1769667897522,0.42328401,2953.0,2952.8,0.002]
[1769667899914,0.001,2952.9,2952.8,0.002]
[1769667909959,0.001,2952.9,2952.6,0.002]
[1769667912164,0.001,2952.7,2952.6,0.002]
[1769667943220,0.93952517,2952.7,2952.5,1e-08]
[1769667943411,0.93952517,2952.7,2952.1,0.002]
[1769667943611,0.001,2952.7,2952.1,0.002]
[1769667945719,0.84768269,2952.7,2952.1,0.002]
[1769667946291,0.84768269,2952.7,2952.3,0.002]
[1769667946490,1.36507553,2952.7,2952.3,0.002]
[1769667948328,2.3036007,2952.7,2952.3,0.002]
[1769667957142,0.98922257,2952.6,2952.3,0.002]
[1769667957928,0.001,2952.5,2952.3,0.002]
[1769667959166,0.84774005,2952.5,2952.3,0.002]
[1769667959635,0.84774005,2952.5,2952.1,0.002]
[1769667959636,1.42196179,2952.5,2952.1,0.002]
[1769667960069,0.98922257,2952.4,2952.0,0.002]
[1769667960363,0.98922257,2952.4,2951.8,0.002]
[1769667960757,0.98922257,2952.4,2951.6,0.002]
[1769667961070,0.98922257,2952.2,2951.6,0.002]
[1769667961659,0.84685478,2952.1,2951.6,0.002]
[1769667967473,1.83607735,2952.1,2951.6,0.002]
[1769667967877,0.98922257,2952.0,2951.6,0.002]
[1769667968063,0.98922257,2952.0,2951.4,1e-08]
[1769667968265,1.17283031,2951.9,2951.4,1e-08]
[1769667969483,1.17283031,2951.9,2951.8,0.002]
[1769667969648,1.17383031,2951.9,2951.4,1e-08]
[1769667969969,0.84694084,2951.8,2951.5,0.002]
[1769667970285,1.83616341,2951.8,2951.4,1e-08]
[1769667970463,1.53007602,2951.7,2951.4,1e-08]
[1769667974396,0.84699823,2951.6,2951.4,1e-08]
[1769667976794,0.84696342,2951.8,2951.4,1e-08]
[1769667977880,1.83618599,2951.8,2951.2,0.002]
[1769667978087,1.53006857,2951.7,2951.2,0.002]
[1769667978289,0.98922257,2951.6,2951.2,0.002]
[1769667979014,1.8362495,2951.5,2950.7,0.93953601]
[1769667979682,0.98922257,2951.4,2950.6,0.002]
[1769667979885,0.98922257,2951.2,2950.6,0.002]
[1769667980915,0.84714174,2951.1,2950.6,0.002]
[1769667981786,1.83636431,2951.1,2950.6,0.002]
[1769667985502,0.91737654,2951.0,2950.6,0.002]
[1769667986324,1.76457569,2950.9,2950.6,0.002]
[1769667986537,0.35474477,2950.8,2950.4,0.002]
[1769667986954,0.35474477,2950.8,2950.2,0.002]
[1769667987254,1.76457569,2950.9,2950.2,0.002]
[1769667987756,0.91737654,2950.8,2950.2,0.002]
[1769667988340,1.76463312,2950.7,2950.2,0.002]
[1769667989431,0.9133274,2950.5,2949.4,1.81482767]
[1769667989657,8.21181411,2950.6,2949.4,1.81482767]
[1769667989658,1.82584155,2950.4,2949.4,2.3353852]
[1769667990419,0.84725658,2950.7,2949.4,2.3353852]
[1769667990420,1.76058398,2950.8,2949.6,8.21181411]
[1769667990620,0.84725658,2950.7,2949.7,0.96721199]
[1769667991257,1.76058398,2950.7,2949.7,0.96721199]
[1769667993333,1.76058398,2950.7,2949.4,1.36817321]
[1769667993334,1.76058398,2950.7,2949.8,1.81472707]
[1769667993663,1.76058398,2950.7,2949.9,1.1486847]
[1769667996574,1.76058398,2950.7,2949.9,1.99616831]
[1769667998177,1.76058398,2950.7,2949.9,1.1486847]
[1769667998969,0.84724514,2950.8,2950.0,0.96721199]
[1769667999171,0.84821816,2950.9,2950.0,0.96721199]
[1769667999380,0.84821816,2950.9,2950.2,0.96721199]
[1769667999871,1.76154556,2950.9,2950.1,0.19961674]
[1769668000253,1.76154556,2950.9,2950.1,1.16682873]
[1769668000470,0.84821816,2950.9,2950.1,1.16682873]
[1769668001267,0.84821816,2950.9,2950.1,2.01425032]
[1769668001474,0.84821816,2950.9,2950.2,0.20142503]
[1769668003377,1.76154556,2950.9,2950.2,0.20142503]
[1769668003692,0.9133274,2950.8,2950.1,0.19961674]
[1769668005396,0.84725658,2950.7,2950.1,0.19961674]
[1769668006049,0.001,2950.6,2950.1,0.19961674]
[1769668011967,0.001,2950.6,2949.9,1.02894093]
[1769668011968,0.9143274,2950.6,2949.9,1.02894093]
[1769668013494,0.9143274,2950.6,2950.0,0.84745103]
[1769668014596,0.9143274,2950.6,2949.9,1.02893713]
[1769668017201,1.76161606,2950.6,2949.9,1.02893713]
[1769668017405,0.9143274,2950.6,2949.9,1.02893713]
[1769668017602,0.001,2950.4,2949.9,1.02893713]
[1769668021005,0.001,2950.9,2950.2,0.91134295]
[1769668021210,0.001,2950.9,2950.4,0.91134295]
[1769668023685,0.001,2950.9,2950.6,0.9]
[1769668023889,0.84791833,2951.9,2950.8,0.91134295]
[1769668024326,0.92733424,2951.8,2950.7,8.2225678]
[1769668024497,0.92733424,2951.7,2950.8,0.99698473]
[1769668024904,0.92733424,2951.7,2950.8,1.90832768]
[1769668025306,0.92733424,2951.7,2950.9,0.91134295]
[1769668026019,0.92733424,2951.7,2951.0,0.84717045]
[1769668026395,0.84792714,2951.9,2951.0,0.84717045]
[1769668026734,0.92733424,2951.8,2951.0,1.7585134]
[1769668028323,0.92733424,2951.8,2950.9,3.3887709]
[1769668028324,1.77428568,2951.8,2950.8,0.91134295]
[1769668028995,0.001,2951.6,2950.8,0.91134295]
[1769668031330,0.001,2951.9,2951.1,0.91134295]
[1769668032126,0.92833424,2951.9,2951.1,0.91134295]
[1769668033018,0.92733424,2952.3,2951.1,0.91134295]
[1769668033199,0.92733424,2952.3,2951.3,0.91134295]
[1769668034503,0.92733424,2952.2,2951.4,0.84705563]
[1769668034825,0.84679824,2952.3,2951.5,0.91134295]
[1769668035409,1.77411812,2952.4,2951.5,0.91134295]
[1769668035605,3.38797076,2952.5,2951.5,0.91134295]
[1769668035606,0.001,2952.5,2951.5,0.91134295]
[1769668035830,0.001,2952.5,2951.7,0.91134295]
[1769668036399,0.001,2952.5,2951.8,0.84694084]
[1769668036619,0.001,2952.5,2951.9,0.91134295]
[1769668038526,0.001,2952.5,2951.9,1.75822901]
[1769668041037,0.001,2952.3,2951.9,1.75822901]
[1769668041238,0.001,2952.3,2952.0,0.51459858]
[1769668043309,0.001,2952.3,2952.0,1.36146408]
[1769668048438,0.001,2952.5,2952.0,1.36146408]
[1769668048639,0.001,2952.5,2952.0,2.32721991]
[1769668052257,0.001,2952.5,2952.0,1.36146408]
[1769668052466,0.001,2952.5,2952.1,0.47491071]
[1769668053766,0.001,2952.3,2952.1,0.47491071]
[1769668055456,0.001,2952.3,2952.0,0.8468655]
[1769668055654,0.9152282,2952.7,2950.8,0.58292724]
[1769668055655,0.001,2952.7,2952.2,0.84682609]
[1769668056372,0.001,2952.7,2952.1,1.77225936]
[1769668056557,0.001,2952.7,2952.2,0.51597606]
[1769668057574,0.001,2952.9,2952.4,0.92542499]
[1769668057778,0.74839828,2953.6,2952.4,0.92542499]
[1769668057946,0.74839828,2953.6,2952.5,0.92542499]
[1769668058146,0.74839828,2953.6,2952.6,1.10796749]
[1769668059758,0.9142282,2953.9,2952.9,9.14799279]
[1769668064186,0.9142282,2953.8,2953.0,0.84659668]
[1769668065477,0.001,2953.7,2953.0,0.84659668]
[1769668065667,0.001,2953.7,2953.1,1.33809999]
[1769668066688,0.001,2953.7,2953.1,2.18465006]
[1769668067892,0.001,2953.7,2952.8,8.20467682]
[1769668067893,0.9152282,2953.7,2952.8,3.38658077]
[1769668068066,0.9152282,2953.7,2952.9,0.84662396]
[1769668068391,0.9152282,2953.7,2952.8,3.3865987]
[1769668069093,0.9152282,2953.7,2952.7,0.84668269]
[1769668069272,0.9152282,2953.7,2952.8,0.6050381]
[1769668069591,1.76162711,2953.7,2952.8,0.6050381]
[1769668069790,0.9142282,2953.6,2952.8,0.6050381]
[1769668070558,0.001,2953.7,2952.8,9.73513991]
[1769668070761,0.001,2953.7,2952.9,0.92542499]
[1769668070961,0.001,2953.7,2953.0,0.97351399]
[1769668071466,0.001,2953.7,2953.1,0.84656801]
[1769668073605,0.001,2953.7,2953.3,0.9]